lending/lending_fUSD_20240111
["ID","MTS","AMOUNT","RATE_DAILY","PERIOD"]
[311258736,1704999056481,-151.0,0.00045,14]
[311258737,1704999056490,-53032.26925999,0.00045,30]
[311258738,1704999056500,-151.0,0.00045,14]
[311258739,1704999056509,-151.0,0.00045,14]
[311258740,1704999056518,-150.0,0.00045,16]
[311258741,1704999056527,-165.570354,0.00045,16]
[311258742,1704999056536,-1000.0,0.00045,120]
[311258743,1704999056545,-500.0,0.00045,9]
[311258744,1704999056555,-500.0,0.00045,9]
[311258745,1704999056564,-151.0,0.00045,14]
[311258746,1704999056573,-151.0,0.00045,14]
[311258747,1704999056583,-157.44,0.00045,14]
[311258748,1704999056592,-990.0,0.00045,30]
[311258749,1704999056601,-990.0,0.00045,30]
[311258750,1704999056610,-990.0,0.00045,30]
[311258751,1704999056620,-990.0,0.00045,30]
[311258752,1704999056629,-990.0,0.00045,30]
[311258753,1704999056638,-990.0,0.00045,30]
[311258754,1704999056647,-990.0,0.00045,30]
[311258755,1704999056656,-990.0,0.00045,30]
[311258756,1704999056665,-990.0,0.00045,30]
[311258757,1704999056675,-990.0,0.00045,30]
[311258758,1704999056684,-990.0,0.00045,30]
[311258759,1704999056693,-990.0,0.00045,30]
[311258760,1704999056703,-990.0,0.00045,30]
[311258761,1704999056712,-990.0,0.00045,30]
[311258762,1704999056721,-990.0,0.00045,30]
[311258763,1704999056730,-990.0,0.00045,30]
[311258764,1704999056739,-990.0,0.00045,30]
[311258765,1704999056749,-990.0,0.00045,30]
[311258766,1704999056758,-990.0,0.00045,30]
[311258767,1704999056767,-990.0,0.00045,30]
[311258768,1704999056777,-990.0,0.00045,30]
[311258769,1704999056786,-990.0,0.00045,30]
[311258770,1704999056795,-990.0,0.00045,30]
[311258771,1704999056804,-990.0,0.00045,30]
[311258772,1704999056813,-990.0,0.00045,30]
[311258773,1704999056823,-990.0,0.00045,30]
[311258774,1704999056832,-990.0,0.00045,30]
[311258775,1704999056842,-990.0,0.00045,30]
[311258776,1704999056852,-990.0,0.00045,30]
[311258777,1704999056861,-990.0,0.00045,30]
[311258778,1704999056871,-990.0,0.00045,30]
[311258779,1704999056880,-2000.0,0.00045,7]
[311258780,1704999056889,-990.0,0.00045,30]
[311258781,1704999056899,-990.0,0.00045,30]
[311258782,1704999056908,-990.0,0.00045,30]
[311258783,1704999056917,-990.0,0.00045,30]
[311258784,1704999056927,-990.0,0.00045,30]
[311258785,1704999056936,-990.0,0.00045,30]
[311258786,1704999056946,-990.0,0.00045,30]
[311258787,1704999056955,-990.0,0.00045,30]
[311258788,1704999056964,-990.0,0.00045,30]
[311258789,1704999056974,-990.0,0.00045,30]
[311258790,1704999056983,-990.0,0.00045,30]
[311258791,1704999056993,-990.0,0.00045,30]
[311258792,1704999057002,-990.0,0.00045,30]
[311258793,1704999057012,-200.0,0.00045,7]
[311258794,1704999057021,-990.0,0.00045,30]
[311258795,1704999057031,-990.0,0.00045,30]
[311258796,1704999057040,-990.0,0.00045,30]
[311258797,1704999057050,-990.0,0.00045,30]
[311258798,1704999057059,-990.0,0.00045,30]
[311258799,1704999057068,-990.0,0.00045,30]
[311258800,1704999057077,-990.0,0.00045,30]
[311258801,1704999057086,-990.0,0.00045,30]
[311258802,1704999057096,-990.0,0.00045,30]
[311258803,1704999057105,-990.0,0.00045,30]
[311258804,1704999057115,-990.0,0.00045,30]
[311258805,1704999057124,-218.498193,0.00045,30]
[311258806,1704999057133,-155.948841,0.00045,14]
[311258807,1704999057142,-151.0,0.00045,7]
[311258808,1704999057277,-3000.0,0.00045,17]
[311258809,1704999057288,-1410.623809,0.00045,14]
[311258810,1704999057297,-1410.623809,0.00045,14]
[311258811,1704999057305,-151.0,0.00045,14]
[311258812,1704999057315,-151.0,0.00045,14]
[311258813,1704999057324,-2740.209821,0.00045,14]
[311258814,1704999057333,-2740.209821,0.00045,14]
[311258815,1704999057348,-1000.0,0.00045,7]
[311258816,1704999057357,-614.47828093,0.00045,2]
[311258817,1704999057367,-973.621287,0.00045,14]
[311258818,1704999057376,-973.621287,0.00045,14]
[311258819,1704999057386,-151.0,0.00045,14]
[311258820,1704999057395,-856.517788,0.00045,14]
[311258821,1704999057406,-856.517788,0.00045,14]
[311258822,1704999057416,-300.0,0.00045,21]
[311258823,1704999057427,-2069.0,0.00045,2]
[311258824,1704999057437,-150.0,0.00045,61]
[311258825,1704999057448,-5085.0,0.00045,2]
[311258826,1704999057458,-151.0,0.00045,14]
[311258827,1704999057468,-293.972965,0.00045,14]
[311258828,1704999057478,-151.0,0.00045,14]
[311258829,1704999057487,-2110.0,0.00045,15]
[311258830,1704999057497,-270.739334,0.00045,14]
[311258831,1704999057506,-270.739334,0.00045,14]
[311258832,1704999057515,-151.0,0.00045,14]
[311258833,1704999057524,-174328.06339168,0.00045,2]
[311258834,1704999057534,-1411.99961524,0.00045,2]
[311258835,1704999057545,-369.3316,0.00045,30]
[311258836,1704999057556,-45854.65888026,0.00045,30]
[311258837,1704999057566,-1297.454311,0.00045,9]
[311258838,1704999057575,-151.0,0.00045,14]
[311258839,1704999057584,-2403.7861512,0.00045003,2]
[311258840,1704999057593,-215.2207524,0.00045003,2]
[311258841,1704999057602,-12462.2113453,0.00045003,2]
[311258842,1704999057611,-79983.7114965,0.00045003,2]
[311258843,1704999057620,-774.8111208,0.00045003,2]
[311258844,1704999057629,-353.0,0.00045017,30]
[311258845,1704999057639,-1152.3393092,0.00045017,30]
[311258846,1704999057648,-1390.0,0.00045017,30]
[311258847,1704999057659,-171.71814317,0.0004504,30]
[311258848,1704999057668,-156.18722055,0.00045041,30]
[311258849,1704999057677,-500.0,0.00045055,7]
[311258850,1704999057687,-622.28,0.00045055,7]
[311258851,1704999057697,-156.94429716,0.00045087,30]
[311258852,1704999057706,-1000.0,0.000451,2]
[311258853,1704999057715,-2000.0,0.000451,2]
[311258854,1704999057725,-160.04902525,0.00045135,30]
[311258855,1704999057734,-576.5623,0.0004514,30]
[311258856,1704999057743,-489.47,0.00045149,2]
[311258857,1704999057753,-1420.0,0.000452,2]
[311258858,1704999057762,-1617.0,0.000452,2]
[311258859,1704999057771,-318.0,0.000452,2]
[311258860,1704999057781,-200.0,0.00045203,34]
[311258861,1704999057790,-156.40225506,0.00045205,4]
[311258862,1704999057800,-252.18926151,0.00045205,7]
[311258863,1704999057809,-155.55398413,0.00045205,2]
[311258864,1704999057819,-155.60662019,0.00045205,4]
[311258865,1704999057828,-886.08485072,0.00045205,4]
[311258866,1704999057838,-280.16467357,0.00045205,4]
[311258867,1704999057847,-172.030187,0.00045205,4]
[311258868,1704999057859,-1436.37774937,0.00045205,4]
[311258869,1704999057868,-1203.67193677,0.00045205,120]
[311258870,1704999057877,-155.09150163,0.00045205,4]
[311258871,1704999057887,-481.34835111,0.00045205,4]
[311258872,1704999057896,-574.85167249,0.00045205,15]
[311258873,1704999057907,-550.0,0.00045205,7]
[311258874,1704999057916,-666.0,0.00045205,2]
[311258875,1704999057925,-155.0,0.00045207,2]
[311258876,1704999057936,-6550.586423,0.00045223,2]
[311258877,1704999057946,-150.0,0.00045276,2]
[311258878,1704999057956,-150.0,0.00045276,2]
[311258879,1704999057966,-150.0,0.00045276,2]
[311258880,1704999057975,-150.0,0.00045276,2]
[311258881,1704999057985,-150.0,0.00045276,2]
[311258882,1704999057994,-150.0,0.00045276,2]
[311258883,1704999058003,-150.0,0.00045276,2]
[311258884,1704999058013,-150.0,0.00045276,2]
[311258885,1704999058022,-1003.43008904,0.00045283,10]
[311258886,1704999058031,-775.69951699,0.000453,120]
[311258887,1704999058040,-12875.0,0.000453,30]
[311258888,1704999058049,-500.0,0.00045316,7]
[311258889,1704999058058,-500.0,0.00045328,7]
[311258890,1704999058068,-152.0,0.00045374,5]
[311258891,1704999058077,-2002.24,0.00045375,2]
[311258892,1704999058086,-150.0,0.00045422,2]
[311258893,1704999058095,-150.0,0.0004543,5]
[311258894,1704999058105,-150.0,0.0004543,5]
[311258895,1704999058114,-156.94429716,0.00045446,30]
[311258896,1704999058123,-2000.0,0.0004545,7]
[311258897,1704999058133,-200.0,0.0004545,7]
[311258898,1704999058141,-2000.0,0.0004545,7]
[311258899,1704999058151,-200.0,0.0004545,7]
[311258900,1704999058160,-2000.0,0.0004545,7]
[311258901,1704999058169,-200.0,0.0004545,7]
[311258902,1704999058180,-3000.0,0.0004546,28]
[311258903,1704999058189,-1390.0,0.00045467,30]
[311258904,1704999058198,-370.89483349,0.00045479,7]
[311258905,1704999058207,-350.0,0.00045479,120]
[311258906,1704999058217,-171.71814317,0.00045487,30]
[311258907,1704999058226,-10000.0,0.000455,45]
[311258908,1704999058235,-2000.0,0.000455,30]
[311258909,1704999058244,-20000.0,0.000455,60]
[311258910,1704999058254,-10000.0,0.000455,45]
[311258911,1704999058263,-653.96930591,0.000455,120]
[311258912,1704999058274,-150.0,0.000455,35]
[311258913,1704999058283,-2110.0,0.000455,15]
[311258914,1704999058293,-5046.52181974,0.00045503,21]
[311258915,1704999058302,-150.0,0.00045552,2]
[311258916,1704999058311,-150.0,0.00045552,2]
[311258917,1704999058320,-150.0,0.00045552,2]
[311258918,1704999058330,-150.0,0.00045552,2]
[311258919,1704999058339,-150.0,0.00045552,2]
[311258920,1704999058348,-150.0,0.00045552,2]
[311258921,1704999058357,-340.25,0.00045552,2]
[311258922,1704999058366,-939.68,0.00045552,2]
[311258923,1704999058375,-939.68,0.00045552,2]
[311258924,1704999058384,-939.68,0.00045552,2]
[311258925,1704999058393,-407.88,0.00045552,2]
[311258926,1704999058403,-150.0,0.00045552,2]
[311258927,1704999058413,-293.84,0.00045552,2]
[311258928,1704999058422,-150.0,0.00045552,2]
[311258929,1704999058434,-150.0,0.00045552,2]
[311258930,1704999058445,-150.0,0.00045552,2]
[311258931,1704999058454,-407.88,0.00045552,2]
[311258932,1704999058463,-150.0,0.00045552,2]
[311258933,1704999058472,-417.71,0.00045552,2]
[311258934,1704999058481,-150.0,0.00045552,2]
[311258935,1704999058489,-150.0,0.00045552,2]
[311258936,1704999058498,-939.68,0.00045552,2]
[311258937,1704999058507,-314.07,0.00045552,2]
[311258938,1704999058516,-150.0,0.00045552,2]
[311258939,1704999058525,-150.0,0.00045552,2]
[311258940,1704999058534,-293.84,0.00045552,2]
[311258941,1704999058544,-417.71,0.00045552,2]
[311258942,1704999058553,-407.88,0.00045552,2]
[311258943,1704999058562,-150.0,0.00045552,2]
[311258944,1704999058572,-150.0,0.00045552,2]
[311258945,1704999058581,-314.07,0.00045552,2]
[311258946,1704999058591,-150.0,0.00045552,2]
[311258947,1704999058600,-150.0,0.00045552,2]
[311258948,1704999058609,-293.84,0.00045552,2]
[311258949,1704999058619,-939.68,0.00045552,2]
[311258950,1704999058628,-150.0,0.00045552,2]
[311258951,1704999058638,-314.07,0.00045552,2]
[311258952,1704999058647,-150.0,0.00045552,2]
[311258953,1704999058656,-407.88,0.00045552,2]
[311258954,1704999058666,-401.03,0.00045552,2]
[311258955,1704999058675,-150.0,0.00045552,2]
[311258956,1704999058686,-150.0,0.00045552,2]
[311258957,1704999058695,-150.0,0.00045552,2]
[311258958,1704999058705,-939.68,0.00045552,2]
[311258959,1704999058715,-293.84,0.00045552,2]
[311258960,1704999058724,-407.88,0.00045552,2]
[311258961,1704999058733,-150.0,0.00045552,2]
[311258962,1704999058743,-314.07,0.00045552,2]
[311258963,1704999058752,-293.84,0.00045552,2]
[311258964,1704999058761,-150.0,0.00045552,2]
[311258965,1704999058770,-150.0,0.00045552,2]
[311258966,1704999058779,-177.74,0.00045552,2]
[311258967,1704999058789,-939.68,0.00045552,2]
[311258968,1704999058798,-150.0,0.00045552,2]
[311258969,1704999058807,-314.07,0.00045552,2]
[311258970,1704999058816,-150.0,0.00045552,2]
[311258971,1704999058825,-150.0,0.00045552,2]
[311258972,1704999058834,-407.88,0.00045552,2]
[311258973,1704999058843,-401.03,0.00045552,2]
[311258974,1704999058853,-150.0,0.00045552,2]
[311258975,1704999058862,-314.07,0.00045552,2]
[311258976,1704999058871,-150.0,0.00045552,2]
[311258977,1704999058881,-150.0,0.00045552,2]
[311258978,1704999058890,-407.88,0.00045552,2]
[311258979,1704999058900,-939.68,0.00045552,2]
[311258980,1704999059021,-293.84,0.00045552,2]
[311258981,1704999059030,-407.88,0.00045552,2]
[311258982,1704999059039,-314.07,0.00045552,2]
[311258983,1704999059048,-150.0,0.00045552,2]
[311258984,1704999059057,-150.0,0.00045552,2]
[311258985,1704999059067,-939.68,0.00045552,2]
[311258986,1704999059075,-314.07,0.00045552,2]
[311258987,1704999059085,-407.88,0.00045552,2]
[311258988,1704999059094,-150.0,0.00045552,2]
[311258989,1704999059103,-401.03,0.00045552,2]
[311258990,1704999059112,-150.0,0.00045552,2]
[311258991,1704999059121,-939.68,0.00045552,2]
[311258992,1704999059130,-407.88,0.00045552,2]
[311258993,1704999059140,-150.0,0.00045552,2]
[311258994,1704999059150,-150.0,0.00045552,2]
[311258995,1704999059160,-314.07,0.00045552,2]
[311258996,1704999059169,-939.68,0.00045552,2]
[311258997,1704999059179,-407.88,0.00045552,2]
[311258998,1704999059188,-150.0,0.00045552,2]
[311258999,1704999059198,-314.07,0.00045552,2]
[311259000,1704999059207,-150.0,0.00045552,2]
[311259001,1704999059216,-401.03,0.00045552,2]
[311259002,1704999059226,-150.0,0.00045552,2]
[311259003,1704999059235,-359.61,0.00045552,2]
[311259004,1704999059244,-150.0,0.00045552,2]
[311259005,1704999059253,-150.0,0.00045552,2]
[311259006,1704999059262,-314.07,0.00045552,2]
[311259007,1704999059271,-150.0,0.00045552,2]
[311259008,1704999059280,-401.03,0.00045552,2]
[311259009,1704999059289,-314.07,0.00045552,2]
[311259010,1704999059299,-314.07,0.00045552,2]
[311259011,1704999059309,-401.03,0.00045552,2]
[311259012,1704999059318,-177.26,0.00045552,2]
[311259013,1704999059327,-401.03,0.00045552,2]
[311259014,1704999059337,-401.03,0.00045552,2]
[311259015,1704999059346,-401.03,0.00045552,2]
[311259016,1704999059355,-401.03,0.00045552,2]
[311259017,1704999059364,-401.03,0.00045552,2]
[311259018,1704999059374,-401.03,0.00045552,2]
[311259019,1704999059383,-401.03,0.00045552,2]
[311259020,1704999059392,-224.44,0.00045552,2]
[311259021,1704999059402,-399.63,0.00045552,2]
[311259022,1704999059411,-281.28,0.00045552,2]
[311259023,1704999059420,-401.03,0.00045552,2]
[311259024,1704999059430,-401.03,0.00045552,2]
[311259025,1704999059439,-401.03,0.00045552,2]
[311259026,1704999059448,-401.03,0.00045552,2]
[311259027,1704999059457,-401.03,0.00045552,2]
[311259028,1704999059467,-401.03,0.00045552,2]
[311259029,1704999059476,-794.27,0.00045552,2]
[311259030,1704999059486,-500.0,0.00045601,7]
[311259031,1704999059496,-400.0,0.00045616,120]
[311259032,1704999059505,-157.49782164,0.00045623,30]
[311259033,1704999059514,-765.08541647,0.00045623,17]
[311259034,1704999059524,-500.0,0.0004563,30]
[311259035,1704999059533,-6550.586423,0.00045635,2]
[311259036,1704999059542,-171.71814317,0.00045668,30]
[311259037,1704999059553,-500.0,0.00045674,7]
[311259038,1704999059563,-150.0,0.00045698,2]
[311259039,1704999059572,-150.0,0.00045698,2]
[311259040,1704999059581,-151.68522207,0.00045741,28]
[311259041,1704999059590,-1805.31,0.00045753,5]
[311259042,1704999059599,-2100.0,0.00045764,30]
[311259043,1704999059608,-12977.31120328,0.000458,120]
[311259044,1704999059625,-23434.00845159,0.000458,120]
[311259045,1704999059634,-11875.0,0.000458,30]
[311259046,1704999059643,-156.94429722,0.00045827,30]
[311259047,1704999059653,-500.0,0.00045874,7]
[311259048,1704999059662,-598.7501414,0.0004589,60]
[311259049,1704999059671,-436.01629179,0.00045893,30]
[311259050,1704999059681,-1000.0,0.000459,7]
[311259051,1704999059691,-2000.0,0.00045904,7]
[311259052,1704999059699,-200.0,0.00045904,7]
[311259053,1704999059709,-2000.0,0.00045904,7]
[311259054,1704999059718,-200.0,0.00045904,7]
[311259055,1704999059727,-1793.08303871,0.00045904,7]
[311259056,1704999059736,-200.0,0.00045904,7]
[311259057,1704999059745,-1390.0,0.00045918,30]
[311259058,1704999059755,-157.49782164,0.00045922,30]
[311259059,1704999059764,-685.02712244,0.00045949,30]
[311259060,1704999059787,-500.0,0.00045987,25]
[311259061,1704999059805,-200.0,0.00045987,21]
[311259062,1704999059823,-150.0,0.00045999,30]
[311259063,1704999059844,-155.38762747,0.00045999,30]
[311259064,1704999059861,-154.53683774,0.00045999,30]
[311259065,1704999059879,-273.64287872,0.00045999,30]
[311259066,1704999059895,-282.61063857,0.00045999,30]
[311259067,1704999059916,-150.0,0.00045999,30]
[311259068,1704999059936,-150.0,0.00045999,30]
[311259069,1704999059956,-165.11554953,0.00045999,30]
[311259070,1704999059978,-263.28498874,0.00045999,30]
[311259071,1704999059993,-180.17363088,0.00045999,30]
[311259072,1704999060009,-162.61901773,0.00045999,30]
[311259073,1704999060028,-100000.0,0.00046,16]
[311259074,1704999060042,-3277.57111533,0.00046,120]
[311259075,1704999060062,-2000.0,0.00046,30]
[311259076,1704999060078,-1000.0,0.00046,30]
[311259077,1704999060095,-5037.25611676,0.00046,15]
[311259078,1704999060112,-300.0,0.00046,47]
[311259079,1704999060128,-152211.43074015,0.00046,15]
[311259080,1704999060144,-1000.0,0.00046,120]
[311259081,1704999060159,-150.0,0.00046,36]
[311259082,1704999060175,-6639.87,0.00046,7]
[311259083,1704999060190,-5110.81,0.00046,7]
[311259084,1704999060205,-507.915023,0.00046,9]
[311259085,1704999060220,-507.915024,0.00046,9]
[311259086,1704999060235,-3000.0,0.00046,19]
[311259087,1704999060251,-300.0,0.00046,22]
[311259088,1704999060266,-150.0,0.00046,73]
[311259089,1704999060281,-2110.0,0.00046,15]
[311259090,1704999060298,-1297.454311,0.00046,11]
[311259091,1704999060314,-256.74830731,0.00046023,30]
[311259092,1704999060329,-500.0,0.00046031,7]
[311259093,1704999060345,-6550.586423,0.00046048,2]
[311259094,1704999060361,-1000.0,0.00046053,30]
[311259095,1704999060375,-2000.0,0.0004606,120]
[311259096,1704999060390,-200.0,0.00046074,35]
[311259097,1704999060405,-171.71814317,0.00046075,30]
[311259098,1704999060421,-171.71814317,0.00046076,30]
[311259099,1704999060436,-235.29933683,0.00046084,30]
[311259100,1704999060452,-520.99499583,0.00046084,30]
[311259101,1704999060468,-514.18476403,0.00046084,30]
[311259102,1704999060484,-161.11071579,0.00046084,30]
[311259103,1704999060499,-459.58342841,0.00046084,30]
[311259104,1704999060518,-3000.0,0.0004609,31]
[311259105,1704999060533,-1754.259536,0.000461,2]
[311259106,1704999060550,-1000.0,0.000461,2]
[311259107,1704999060567,-2000.0,0.000461,2]
[311259108,1704999060577,-500.0,0.00046148,7]
[311259109,1704999060586,-2745.13816245,0.00046174,5]
[311259110,1704999060596,-500.0,0.00046178,30]
[311259111,1704999060605,-612.74287842,0.000462,30]
[311259112,1704999060615,-162.46684796,0.00046209,30]
[311259113,1704999060624,-72623.3379224,0.000463,2]
[311259114,1704999060634,-11336.7914542,0.00046341,2]
[311259115,1704999060644,-2002.24,0.0004635,2]
[311259116,1704999060653,-183.92851571,0.00046351,30]
[311259117,1704999060663,-2000.0,0.00046364,7]
[311259118,1704999060673,-200.0,0.00046364,7]
[311259119,1704999060684,-1390.0,0.00046368,30]
[311259120,1704999060694,-524.754,0.00046373,2]
[311259121,1704999060703,-385.0,0.00046373,2]
[311259122,1704999060712,-1851.0,0.00046373,2]
[311259123,1704999060721,-944.0,0.00046373,2]
[311259124,1704999060731,-834.0,0.00046373,2]
[311259125,1704999060741,-1234.0,0.00046373,2]
[311259126,1704999060751,-1251.0,0.00046373,2]
[311259127,1704999060760,-1930.0,0.00046373,2]
[311259128,1704999060770,-592.0,0.00046373,2]
[311259129,1704999060779,-1139.0,0.00046373,2]
[311259130,1704999060789,-995.0,0.00046373,2]
[311259131,1704999060799,-425.0,0.00046373,2]
[311259132,1704999060808,-507.0,0.00046373,2]
[311259133,1704999060818,-318.0,0.00046373,2]
[311259134,1704999060827,-880.0,0.00046373,2]
[311259135,1704999060837,-235.0,0.00046373,2]
[311259136,1704999060847,-2900.0,0.00046373,2]
[311259137,1704999060857,-8080.0,0.00046373,2]
[311259138,1704999061184,-19673.0,0.00046373,2]
[311259139,1704999061203,-150.0,0.00046373,2]
[311259140,1704999061225,-2269.0,0.00046373,2]
[311259141,1704999061235,-4167.0,0.00046373,2]
[311259142,1704999061245,-5567.0,0.00046373,2]
[311259143,1704999061254,-150.0,0.00046373,2]
[311259144,1704999061264,-1028.0,0.00046373,2]
[311259145,1704999061273,-172.90539253,0.00046388,60]
[311259146,1704999061282,-500.0,0.00046388,7]
[311259147,1704999061292,-6000.0,0.000464,30]
[311259148,1704999061301,-500.0,0.00046421,7]
[311259149,1704999061311,-6550.586423,0.00046461,2]
[311259150,1704999061320,-2000.0,0.000465,30]
[311259151,1704999061330,-7585.93486268,0.000465,120]
[311259152,1704999061339,-150.0,0.000465,36]
[311259153,1704999061348,-1734.21620082,0.000465,15]
[311259154,1704999061361,-375.78379918,0.000465,15]
[311259155,1704999061371,-108.18520082,0.00046503,2]
[311259156,1704999061874,-692.73695879,0.00027709,2]
[311259157,1704999061884,-4156.26601695,0.00037742,10]
[311259158,1704999061895,-217.24858632,0.00038,2]
[311259159,1704999061904,-217.24858632,0.00038,2]
[311259160,1704999061913,-500.0,0.0004,7]
[311259161,1704999061923,-150.0,0.0004,2]
[311259162,1704999061935,-150.0,0.0004,2]
[311259163,1704999061946,-500.0,0.0004,7]
[311259164,1704999061957,-150.0,0.0004,2]
[311259165,1704999061968,-150.0,0.0004,2]
[311259166,1704999061978,-150.0,0.0004,2]
[311259167,1704999061987,-500.0,0.0004,7]
[311259168,1704999061996,-150.0,0.0004,2]
[311259169,1704999062006,-150.0,0.0004,2]
[311259170,1704999062015,-150.0,0.0004,2]
[311259171,1704999062025,-150.0,0.0004,2]
[311259172,1704999062035,-500.0,0.0004,7]
[311259173,1704999062044,-150.0,0.0004,2]
[311259174,1704999062054,-150.0,0.0004,2]
[311259175,1704999062063,-150.0,0.0004,2]
[311259176,1704999062072,-500.0,0.0004,7]
[311259177,1704999062082,-92.59430999,0.0004,2]
[311259178,1704999062105,-57.40569001,0.0004,2]
[311259179,1704999062115,-150.0,0.0004,2]
[311259180,1704999062125,-150.0,0.0004,2]
[311259181,1704999062134,-150.0,0.0004,2]
[311259182,1704999062143,-500.0,0.0004,7]
[311259183,1704999062153,-150.0,0.0004,2]
[311259184,1704999062162,-150.0,0.0004,2]
[311259185,1704999062171,-150.0,0.0004,2]
[311259186,1704999062183,-60.40052205,0.0004,2]
[311259187,1704999062198,-89.59947795,0.0004,2]
[311259188,1704999062208,-500.0,0.0004,7]
[311259189,1704999062217,-150.0,0.0004,2]
[311259190,1704999062227,-150.0,0.0004,2]
[311259191,1704999062236,-150.0,0.0004,2]
[311259192,1704999062246,-415.62660169,0.00045,30]
[311259193,1704999062257,-3740.63941525,0.00045,30]
[311259194,1704999062266,-41.81479918,0.00046503,2]
[311259195,1704999062276,-10211.3715631,0.00046516,2]
[311259196,1704999062285,-31074.94814283,0.00046516,2]
[311259197,1704999062296,-660.87471969,0.00046516,2]
[311259198,1704999062331,-736.2,0.00026965,2]
[311259199,1704999062341,-500.0,0.0004,7]
[311259200,1704999062350,-150.0,0.0004,2]
[311259201,1704999062360,-617.45165,0.00046516,2]
[311259202,1704999062380,-150.0,0.0004,2]
[311259203,1704999062389,-153.84007919,0.00046516,2]
[311259204,1704999062518,-180.0,0.00034658,2]
[311259205,1704999062528,-214.61869835,0.00039999,4]
[311259206,1704999062537,-500.0,0.00039999,4]
[311259207,1704999062547,-320.16541231,0.00039999,4]
[311259208,1704999062556,-372.57688264,0.00039999,4]
[311259209,1704999062565,-500.0,0.00039999,4]
[311259210,1704999062575,-150.0,0.0004,2]
[311259211,1704999062585,-150.0,0.0004,2]
[311259212,1704999062594,-150.0,0.0004,2]
[311259213,1704999062603,-150.0,0.0004,2]
[311259214,1704999062612,-615.12405923,0.0004,7]
[311259215,1704999062621,-500.0,0.0004,7]
[311259216,1704999062631,-154.43266198,0.0004,7]
[311259217,1704999062640,-150.0,0.0004,2]
[311259218,1704999062649,-150.0,0.0004,2]
[311259219,1704999062660,-150.0,0.0004,2]
[311259220,1704999062669,-410.08270615,0.00044575,30]
[311259221,1704999062679,-436.28844132,0.00044575,30]
[311259222,1704999062692,-32755.84975659,0.00046516,2]
[311259223,1704999062701,-171.71814317,0.00046526,30]
[311259224,1704999062711,-11168.471718,0.00046548,120]
[311259225,1704999062721,-101574.894599,0.00046548,120]
[311259226,1704999062732,-3350.541515,0.00046548,120]
[311259227,1704999062741,-30472.468381,0.00046548,120]
[311259228,1704999062750,-10157.48946,0.00046548,120]
[311259229,1704999062760,-12696.861825,0.00046548,120]
[311259230,1704999062769,-1759.034295,0.00046548,120]
[311259231,1704999062779,-27996.580323,0.00046548,120]
[311259232,1704999062788,-8769.646719,0.00046548,120]
[311259233,1704999062797,-1237.720252,0.00046548,120]
[311259234,1704999062807,-1856.580379,0.00046548,120]
[311259235,1704999062816,-13154.470078,0.00046548,120]